[Event "Spring Chess Classic A 2024"]
[Site "Saint Louis"]
[Date "2024.04.19"]
[Round "9.1"]
[White "Yoo, Christopher Woojin"]
[Black "Mendonca, Leon Luke"]
[Result "0-1"]
[ECO "E40"]
[WhiteElo "2583"]
[BlackElo "2626"]
[Annotator "TA"]
[PlyCount "86"]
[EventDate "2024.04.11"]
[EventCountry "USA"]
[SourceTitle "playchess.com"]
[Source "ChessBase"]
[SourceQuality "1"]
[TimeControl "7200+30"]

{[%evp 13,86,-17,-18,-18,-17,-23,0,10,5,0,0,-7,19,-4,0,-27,18,-85,-82,-118,-79,-93,-71,-104,-93,-99,-101,-129,-125,-108,-106,-106,-143,-260,-262,-235,-236,-267,-258,-238,-257,-258,-225,-252,-252,-252,-249,-240,-262,-257,-250,-257,-257,-257,-258,-271,-243,-696,-696,-909,-897,-897,-904,-955,-937,-897,-893,-893,-275,-893,-893,-866,-806,-29988,-29989]} 1. d4 {[%emt 0:01:08]} Nf6 {[%emt 0:02:07]} 2. c4 {[%emt 0:00:07]} e6 {[%emt 0:00:05]} 3. Nc3 {[%emt 0:00:05]} Bb4 {[%emt 0:00:42]} 4. e3 {[%emt 0:00:05]} O-O {[%emt 0:00:34]} 5. a3 {[%emt 0:00:03]} Bxc3+ {[%emt 0:00:05]} 6. bxc3 {[%emt 0:00:04]} Nc6 {[%emt 0:01:30]} 7. Bd3 {[%emt 0:00:13]} e5 {[%emt 0:03:32]} 8. f3 {[%emt 0:00:21]} d6 {[%emt 0:09:58]} 9. Ne2 {[%emt 0:02:30]} Nh5 {[%emt 0:04:06]} 10. O-O {[%emt 0:00:45] The position is equal.} f5 {[%emt 0:00:14]} 11. a4 {[%emt 0:00:07]} b6 {[%emt 0:01:23]} 12. Ba3 {[%emt 0:05:23]} Ba6 {[%emt 0:14:16]} 13. Qc2 {[%emt 0:05:06]} Qd7 {[%emt 0:09:56]} 14. Rad1 {[%emt 0:12:49]} Rad8 {[%emt 0:08:43]} 15. Rd2 {[%emt 0:02:32]} (15. e4 $11 {keeps the balance.}) 15... g6 {[%emt 0:06:27][%cal Oe5e4] Black keeps a firm grip on the game.} 16. Rfd1 {[%emt 0:10:13]} Nf6 {[%emt 0:01:49][%cal Oe5e4] aiming for ...e4!} 17. Ng3 {[%emt 0:10:40]} Rfe8 {[%emt 0:12:24]} 18. c5 {[%emt 0:05:28]} Bxd3 {[%emt 0:00:08]} 19. Rxd3 {[%emt 0:00:08] [#]} d5 {[%emt 0:05:16]} 20. c4 {[%emt 0:05:07]} exd4 {[%emt 0:00:34]} 21. exd4 {[%emt 0:00:05]} Na5 {[%emt 0:05:54]} 22. cxb6 {[%emt 0:01:20]} dxc4 {[%emt 0:00:25]} ({But not} 22... axb6 23. c5 $15) 23. bxc7 {[%emt 0:00:23]} (23. R3d2 $17) 23... Qxc7 $19 {[%emt 0:05:31]} (23... cxd3 24. Qa2+ Qd5 25. cxd8=Q Qxa2 26. Qxa5 $17) 24. Bb4 {[%emt 0:03:03]} Qb7 {[%emt 0:01:41]} 25. Bxa5 {[%emt 0:00:13]} cxd3 {[%emt 0:00:09]} 26. Qxd3 {[%emt 0:00:36]} Rc8 {[%emt 0:03:27]} 27. Bd2 {[%emt 0:02:10]} Nd5 {[%emt 0:00:35]} 28. Ne2 {[%emt 0:00:39]} Qc6 {[%emt 0:10:33]} 29. Nf4 {[%emt 0:00:26]} Qxa4 {[%emt 0:00:35]} 30. Rb1 {[%emt 0:00:50]} Qa2 {[%emt 0:03:52] [#] And now ...Rc2 would win.} 31. Nxd5 {[%emt 0:02:41]} Qxd5 {[%emt 0:00:01]} 32. Ra1 {[%emt 0:00:36]} Qc4 {[%emt 0:07:31]} 33. Qxc4+ {[%emt 0:00:42]} Rxc4 {[%emt 0:00:01][%mdl 4096] Endgame. KRR-KRB} 34. d5 {[%emt 0:04:03]} Re2 {[%emt 0:03:52]} 35. Bg5 {[%emt 0:00:17]} (35. Be1) 35... Rcc2 {[%emt 0:01:54]} 36. Kh1 {[%emt 0:02:02]} Rxg2 {[%emt 0:00:14]} 37. Bf4 {[%emt 0:00:06]} g5 {[%emt 0:01:20]} 38. Be5 {[%emt 0:00:44]} f4 {[%emt 0:00:59]} 39. h4 {[%emt 0:00:22]} Rh2+ {[%emt 0:01:14]} 40. Kg1 {[%emt 0:00:04]} Rcg2+ {[%emt 0:00:02]} 41. Kf1 {[%emt 0:00:04]} Rd2 {[%emt 0:00:06]} 42. Kg1 {[%emt 0:00:13] Against Rh1+} Rhe2 {[%emt 0:02:22]} 43. Bf6 {[%emt 0:00:26]} g4 {[%emt 0:00:29] Weighted Error Value: White=0.38/Black=0.07 (flawless) .  Mistake:       	White=3     	---        Inaccurate:     	White=4     	Black=4      OK:         	White=14    	Black=13     Best:        	White=1     	Black=1} 0-1

[Event "Spring Chess Classic A 2024"]
[Site "Saint Louis"]
[Date "2024.04.19"]
[Round "9.2"]
[White "Theodorou, Nikolas"]
[Black "Ter-Sahakyan, Samvel"]
[Result "0-1"]
[ECO "A09"]
[WhiteElo "2622"]
[BlackElo "2644"]
[Annotator "TA"]
[PlyCount "92"]
[EventDate "2024.04.11"]
[EventCountry "USA"]
[SourceTitle "playchess.com"]
[Source "ChessBase"]
[SourceQuality "1"]
[TimeControl "7200+30"]

{[%evp 20,92,-5,-21,-29,-36,-24,-50,-38,-47,-28,-37,-14,-20,-17,-23,-6,-8,15,31,36,37,37,36,40,34,85,88,85,97,79,102,99,104,83,30,23,23,65,16,16,16,29,10,10,14,14,0,0,0,0,-413,-406,-536,-530,-537,-469,-522,-483,-881,-866,-870,-886,-933,-855,-945,-908,-1491,-1473,-1508,-1475,-1521,-1191,-1140,-1113]} 1. Nf3 {[%emt 0:00:04]} d5 {[%emt 0:00:06]} 2. c4 {[%emt 0:00:04]} d4 {[%emt 0:01:08]} 3. b4 {[%emt 0:00:08]} c5 {[%emt 0:00:49]} 4. Bb2 {[%emt 0:00:28]} Nf6 {[%emt 0:00:50]} 5. g3 {[%emt 0:00:19]} Nbd7 {[%emt 0:13:34]} 6. b5 {[%emt 0:02:41] A09: Réti Opening: 1 Nf3 d5 2 c4.} e5 {[%emt 0:09:20]} 7. d3 {[%emt 0:00:06]} Bd6 {[%emt 0:02:14]} 8. Bg2 {[%emt 0:02:37]} O-O {[%emt 0:02:22]} 9. Nbd2 $146 {[%emt 0:02:07]} ({Predecessor:} 9. a4 a5 10. Nbd2 h6 11. Qc2 Re8 12. O-O-O Nf8 13. e4 g5 14. h3 Ng6 15. Kb1 {½-½ Theodorou,N (2584)-Aditya,M (2505) PRO League Prelim rapid 2023 (2.2)}) 9... Re8 {[%emt 0:01:09]} 10. a4 {[%emt 0:05:41]} a5 {[%emt 0:00:31]} 11. e4 {[%emt 0:00:15]} Nf8 {[%emt 0:04:39]} 12. Qe2 {[%emt 0:01:14]} b6 {[%emt 0:01:54]} 13. O-O-O {[%emt 0:01:10]} Ra7 {[%emt 0:00:35]} 14. Kc2 {[%emt 0:00:13]} g6 {[%emt 0:00:55]} 15. Bc1 {[%emt 0:00:16]} Nh5 {[%emt 0:00:46]} 16. h4 {[%emt 0:12:44]} Ne6 {[%emt 0:03:31]} 17. Ng5 {[%emt 0:02:08]} Neg7 {[%emt 0:04:49]} 18. Rdg1 {[%emt 0:07:20]} f6 {[%emt 0:11:48]} 19. Nh3 {[%emt 0:02:27]} f5 {[%emt 0:00:16]} 20. Bf3 {[%emt 0:24:34]} Nf6 {[%emt 0:09:16]} 21. h5 {[%emt 0:01:42]} fxe4 {[%emt 0:13:54]} 22. Nxe4 {[%emt 0:00:04]} Nxe4 {[%emt 0:00:05]} (22... Ngxh5 $14 23. Bxh5 Nxh5) 23. Bxe4 $16 {[%emt 0:01:45]} Nxh5 {[%emt 0:00:22]} 24. Bc6 {[%emt 0:09:32]} Bd7 {[%emt 0:11:40] [#]} 25. Bd5+ $1 {[%emt 0:03:32]} Be6 {[%emt 0:00:18]} 26. Bxe6+ {[%emt 0:08:28]} Rxe6 {[%emt 0:00:14]} 27. g4 {[%emt 0:10:42]} ({Better is} 27. Ng5 $16 Re8 28. f3) 27... Nf6 $11 {[%emt 0:02:21]} 28. f3 {[%emt 0:00:03]} Qe8 {[%emt 0:03:39]} 29. Nf2 {[%emt 0:00:43]} (29. Re1 $14) 29... Rf7 $11 {[%emt 0:01:41]} 30. Rh3 {[%emt 0:00:02]} Bf8 {[%emt 0:08:23]} 31. Rgh1 {[%emt 0:01:17]} Qd7 {[%emt 0:00:15]} 32. Bg5 {[%emt 0:00:47]} Ne8 {[%emt 0:00:51]} 33. Qe4 {[%emt 0:03:25]} Nd6 {[%emt 0:01:49]} 34. Qd5 {[%emt 0:02:00]} Qe8 {[%emt 0:03:32]} 35. Bd2 $2 {[%emt 0:10:26][%mdl 8192] [#]} (35. Re1 $11 {and White stays safe.}) 35... Rd7 $1 $19 {[%emt 0:04:53]} 36. Ne4 {[%emt 0:00:29]} Nf7 {[%emt 0:01:09]} 37. Rxh7 {[%emt 0:05:30]} Rxd5 {[%emt 0:01:03]} 38. cxd5 {[%emt 0:00:02]} Rd6 {[%emt 0:03:39]} 39. f4 {[%emt 0:00:08]} (39. Ng5 $142 Bg7 40. Rxg7+ Kxg7 41. Rh7+ Kg8 42. Rxf7 Qxf7 (42... Rxd5 43. Rf6 $17) 43. Nxf7 Kxf7 44. f4) 39... exf4 $19 {[%emt 0:01:54]} ({Worse is} 39... Rxd5 40. Nf6#) 40. Bxf4 {[%emt 0:00:36]} Bg7 {[%emt 0:00:04]} (40... Rxd5 41. Nf6#) 41. Nxd6 {[%emt 0:03:55]} Qe2+ {[%emt 0:01:31]} 42. Kc1 {[%emt 0:00:04]} Qf3 {[%emt 0:01:31]} 43. Ne8 {[%emt 0:09:10]} Qxf4+ {[%emt 0:00:31]} 44. Kb1 {[%emt 0:00:02]} Be5 {[%emt 0:01:44]} 45. d6 {[%emt 0:00:17]} Bxd6 {[%emt 0:01:22]} 46. g5 {[%emt 0:01:15]} Be5 {[%emt 0:00:19]} ({And not} 46... Nxg5 47. Rg7+ Kf8 48. Rh8#) 0-1

[Event "Spring Chess Classic A 2024"]
[Site "Saint Louis"]
[Date "2024.04.19"]
[Round "9.3"]
[White "Antipov, Mikhail Al."]
[Black "Bok, Benjamin"]
[Result "1/2-1/2"]
[ECO "C54"]
[WhiteElo "2574"]
[BlackElo "2620"]
[Annotator "TA"]
[PlyCount "79"]
[EventDate "2024.04.11"]
[EventCountry "USA"]
[SourceTitle "playchess.com"]
[Source "ChessBase"]
[SourceQuality "1"]
[TimeControl "7200+30"]

{[%evp 12,79,14,8,24,38,25,11,14,7,12,16,25,22,34,-18,-22,-43,-34,-41,-15,-14,-18,-29,0,0,23,-38,-37,-110,-99,-172,-172,-192,-176,-184,-164,-217,-211,-195,-184,-190,-177,-229,-214,-354,-340,-354,-364,-349,-347,-357,-323,-375,-359,-358,-374,-391,-346,-341,-291,-295,-301,-292,0,-281,0,-278,0,-269]} 1. e4 {[%emt 0:00:01]} e5 {[%emt 0:00:05]} 2. Nf3 {[%emt 0:00:05]} Nc6 {[%emt 0:00:05]} 3. Bc4 {[%emt 0:00:04]} Bc5 {[%emt 0:01:13]} 4. d3 {[%emt 0:00:09]} Nf6 {[%emt 0:00:39]} 5. Bg5 {[%emt 0:00:16]} h6 {[%emt 0:00:11]} 6. Bh4 {[%emt 0:00:04]} d6 {[%emt 0:00:12]} 7. c3 {[%emt 0:00:10]} a5 {[%emt 0:00:09]} 8. Nbd2 {[%emt 0:00:39]} Ba7 {[%emt 0:02:24]} 9. a4 {[%emt 0:00:07]} Qe7 {[%emt 0:03:30]} 10. O-O {[%emt 0:06:59]} Bd7 {[%emt 0:21:45]} 11. Rb1 {[%emt 0:01:34]} g5 {[%emt 0:06:41]} 12. Bg3 {[%emt 0:00:15]} Nh7 {[%emt 0:05:51]} 13. Kh1 {[%emt 0:23:43]} (13. Qb3 $14) 13... Nf8 {[%emt 0:23:18]} 14. Ng1 {[%emt 0:03:28]} h5 $36 {[%emt 0:03:05][%mdl 2048] Hoping for ...h4. Black fights for an advantage.} 15. f3 {[%emt 0:00:14]} h4 {[%emt 0:14:05]} 16. Bf2 {[%emt 0:00:12]} Bxf2 {[%emt 0:00:11]} 17. Rxf2 {[%emt 0:00:04]} Ng6 {[%emt 0:00:09]} 18. Nf1 {[%emt 0:00:43]} Qf6 {[%emt 0:08:45]} 19. Bb5 {[%emt 0:06:05]} ({White should try} 19. Ne3 $11) 19... g4 $15 {[%emt 0:03:40][%cal Bg5g4,Bg4g3][%mdl 32]} 20. Ne3 {[%emt 0:00:44] [#]} (20. d4 $15) 20... g3 $1 $17 {[%emt 0:02:24]} 21. Nd5 {[%emt 0:00:27] [#]} (21. Rd2 $17) 21... Qg5 $1 $19 {[%emt 0:08:46]} ({But not} 21... Qd8 $6 22. Re2 $11) 22. f4 {[%emt 0:08:21]} Nxf4 {[%emt 0:01:53]} 23. Rxf4 {[%emt 0:02:02]} (23. Nxc7+ Kd8 24. Nxa8 gxf2 $19) 23... exf4 {[%emt 0:02:31]} 24. Nf3 {[%emt 0:02:03]} (24. h3 $142 O-O 25. Nxc7) 24... Qh6 {[%emt 0:01:37] Strongly threatening ...h3.} ({Worse is} 24... Qd8 25. Qd2 $11) 25. h3 {[%emt 0:11:18]} Kd8 {[%emt 0:07:58]} 26. d4 {[%emt 0:07:53]} Ne7 {[%emt 0:06:31]} 27. Bxd7 {[%emt 0:00:51]} (27. Nxe7 {was necessary.} Kxe7 28. Qb3) 27... Nxd5 {[%emt 0:01:26]} 28. exd5 {[%emt 0:00:04]} (28. Bf5 {might work better.} Ne3 29. Qb3) 28... Kxd7 {[%emt 0:00:09]} 29. Qb3 {[%emt 0:00:04]} Ra6 {[%emt 0:03:03]} 30. Qb5+ {[%emt 0:02:05]} Kc8 {[%emt 0:00:06]} 31. b4 {[%emt 0:00:02]} axb4 {[%emt 0:02:18] White must now prevent ...Rb6.} 32. cxb4 {[%emt 0:00:38]} Kb8 {[%emt 0:00:43]} 33. Rc1 {[%emt 0:01:03]} Rc8 {[%emt 0:00:58]} 34. a5 {[%emt 0:02:36]} Qh5 {[%emt 0:00:32]} 35. Qc4 {[%emt 0:00:03]} Qf5 {[%emt 0:00:19] ...c6 would now be deadly.} 36. Nxh4 {[%emt 0:01:56]} Qe4 {[%emt 0:00:45]} 37. Nf3 {[%emt 0:00:10]} Qf5 {[%emt 0:00:31]} 38. Nh4 $1 {[%emt 0:00:28]} Qe4 {[%emt 0:00:05]} 39. Nf3 $1 {[%emt 0:00:03]} Qf5 {[%emt 0:00:56] And now ...c6 would win.} 40. Nh4 $1 {[%emt 0:02:19][%mdl 32768] Weighted Error Value: White=0.20 (precise) /Black=0.44.  Mistake:       	White=7     	---        Inaccurate:     	---       	Black=2      OK:         	White=11    	Black=15     Best:        	White=3     	Black=1      Strong:       	White=3     	Black=2     . An unexpected result.} 1/2-1/2

[Event "Spring Chess Classic A 2024"]
[Site "Saint Louis"]
[Date "2024.04.19"]
[Round "9.4"]
[White "Swiercz, Dariusz"]
[Black "Hakobyan, Aram"]
[Result "1/2-1/2"]
[ECO "E48"]
[WhiteElo "2612"]
[BlackElo "2619"]
[Annotator "TA"]
[PlyCount "84"]
[EventDate "2024.04.11"]
[EventCountry "USA"]
[SourceTitle "playchess.com"]
[Source "ChessBase"]
[SourceQuality "1"]
[TimeControl "7200+30"]

{[%evp 29,84,0,0,-6,-3,-31,-38,-37,-50,-66,-33,-28,0,0,14,15,13,-228,-218,-242,-97,-77,-84,-78,-92,-82,-102,-96,-72,-57,0,0,20,22,19,17,17,16,16,0,7,0,30,0,0,0,0,0,0,0,0,0,0,0,0,0,995]} 1. d4 {[%emt 0:03:14]} Nf6 {[%emt 0:00:15]} 2. c4 {[%emt 0:00:04]} e6 {[%emt 0:00:11]} 3. Nc3 {[%emt 0:00:10]} Bb4 {[%emt 0:00:11]} 4. e3 {[%emt 0:00:03]} O-O {[%emt 0:01:01]} 5. Bd3 {[%emt 0:00:04]} c5 {[%emt 0:01:04]} 6. Nge2 {[%emt 0:04:30]} Nc6 {[%emt 0:01:11]} 7. O-O {[%emt 0:02:22]} d5 $1 {[%emt 0:00:23] The main line 7...d5 scores better than 7...cxd4.} 8. cxd5 {[%emt 0:02:46]} exd5 {[%emt 0:00:18]} 9. a3 {[%emt 0:01:27]} c4 {[%emt 0:00:10] E48: Nimzo-Indian: Rubinstein: 5 Bd3 d5 including 6 Ne2, but excluding 6 a3.} 10. Bc2 {[%emt 0:22:56]} Ba5 {[%emt 0:01:01]} 11. f3 {[%emt 0:00:22]} a6 {[%emt 0:01:02]} 12. Kh1 {[%emt 0:08:33]} Re8 {[%emt 0:00:49]} 13. h3 $146 {[%emt 0:02:36]} ({Predecessor:} 13. Qe1 b5 14. Bd2 Bc7 15. Rd1 b4 16. Na4 bxa3 17. bxa3 Qd6 18. Qh4 Qxa3 19. e4 {1-0 Cvitan,O (2524)-Saradjen,J (2124) Krk Golden Island op 2nd 2014 (9)}) 13... b5 {[%emt 0:04:21]} 14. e4 {[%emt 0:16:45]} dxe4 {[%emt 0:04:36]} 15. fxe4 {[%emt 0:00:00]} Bxc3 {[%emt 0:00:54]} 16. bxc3 {[%emt 0:00:00]} Nxe4 {[%emt 0:00:12]} 17. d5 {[%emt 0:00:00]} Na5 {[%emt 0:13:09]} 18. Bxe4 {[%emt 0:18:01]} Rxe4 {[%emt 0:00:22]} 19. Ng3 {[%emt 0:00:04]} Re5 {[%emt 0:22:11]} 20. Qf3 {[%emt 0:10:38]} Qd7 {[%emt 0:04:53]} (20... Qxd5 21. Rd1 Bb7 22. Rxd5 Bxd5 23. Qf2 $18) (20... Bb7 $5 21. Qxf7+ Kh8 $15) 21. Nh5 $1 {[%emt 0:02:05]} Qf5 {[%emt 0:28:50]} (21... Qxd5 $2 22. Rd1 $18) (21... Rxd5 $2 22. Nf6+ gxf6 23. Qg3+ Kf8 (23... Kh8 $2 24. Bh6 $18) 24. Bh6+ Ke7 25. Rae1+ $18) (21... Bb7 $5 22. Bh6 (22. Nxg7 Qxd5 23. Qxd5 Bxd5 $11) 22... Qxd5 (22... gxh6 23. Nf6+ Kh8 24. Nxd7) 23. Qxd5 Bxd5 24. Nxg7 Be4 $11) 22. Bf4 $1 {[%emt 0:29:22]} Rxd5 {[%emt 0:00:42] [#]} 23. Qe3 $2 {[%emt 0:01:20]} (23. Rae1 $1 $11 Bb7 (23... Qxh5 24. Re8#) 24. Bb8) 23... Bb7 $1 $19 {[%emt 0:10:06]} (23... Qxh5 24. Qe8#) 24. Rae1 {[%emt 0:00:26] [#]} (24. Nxg7 $2 Qg6 (24... Qd3 25. Ne8 $11) 25. Ne8 Rdd8 $19 (25... Re5 $2 26. Nf6+ Kh8 27. Qd2 $17)) 24... Bc6 {[%emt 0:05:53]} (24... Qxh5 25. Qe8+ Rxe8 26. Rxe8#) (24... Rf8 $1 $19 {and Black stays clearly on top.} 25. Ng3 (25. Nxg7 Qg6 $17) 25... Qd7) 25. Bb8 $17 {[%emt 0:03:29] [#]} (25. Nxg7 $2 Qg6 26. Rf3 (26. Bh6 $2 Rd3 $19) 26... Rd3 $19 (26... Qxg7 $2 27. Rg3 $18) (26... Qxg7 $2 27. Rg3 $18)) 25... Qd7 $1 {[%emt 0:01:52]} (25... Qxh5 26. Qe8+ Bxe8 27. Rxe8#) 26. Nf6+ {[%emt 0:00:15]} gxf6 {[%emt 0:00:07]} 27. Rxf6 {[%emt 0:00:02]} Kh8 {[%emt 0:07:36]} ({Much worse is} 27... Rxb8 $6 28. Qg3+ Kh8 29. Qxb8+ Qd8 30. Qf4 $11) 28. Qg3 {[%emt 0:01:14]} Rxb8 {[%emt 0:10:21]} (28... Rd3 $2 29. Be5 Qxh3+ 30. Qxh3 Rxh3+ 31. Kg1 $18) 29. Qxb8+ {[%emt 0:00:02]} Kg7 {[%emt 0:00:03]} ({Black should play} 29... Qd8 $1 $15 30. Qf4 Rd1) 30. Ref1 $11 {[%emt 0:01:13]} Rg5 {[%emt 0:04:19]} ({Not} 30... Qxh3+ $2 31. gxh3 Rd8+ 32. Rxc6 Rxb8 33. Rxa6 $18) (30... Rd1 $5 31. Rxf7+ Qxf7 32. Qe5+ Kg8 33. Rxd1 Nb7 $11) 31. Rxf7+ {[%emt 0:00:58]} Qxf7 {[%emt 0:00:02]} 32. Rxf7+ {[%emt 0:00:07]} Kxf7 {[%emt 0:00:03]} 33. Qc7+ {[%emt 0:00:25]} Ke8 {[%emt 0:00:16]} 34. Qc8+ {[%emt 0:00:43]} (34. Kg1 $5 Rxg2+ 35. Kf1 $14) 34... Kf7 {[%emt 0:00:08]} 35. Qc7+ {[%emt 0:00:01]} Ke6 {[%emt 0:02:12]} 36. Qxa5 {[%emt 0:00:04]} (36. Kg1 $5 Rxg2+ 37. Kf1 $16) 36... Rxg2 {[%emt 0:00:06]} 37. Qxa6 {[%emt 0:01:13]} Kd6 {[%emt 0:00:03]} 38. Qa5 {[%emt 0:00:43]} Rg3+ {[%emt 0:01:53]} 39. Kh2 {[%emt 0:00:02]} Rg2+ {[%emt 0:00:05]} 40. Kh1 {[%emt 0:00:02]} Rg3+ {[%emt 0:00:06]} 41. Kh2 {[%emt 0:00:01]} Rg2+ {[%emt 0:00:04]} 42. Kh1 {[%emt 0:00:11]} Ke5 $2 {[%emt 0:00:03][%mdl 8192]} (42... Rg7+ $11 43. Kh2 Rg2+) 1/2-1/2

[Event "Spring Chess Classic A 2024"]
[Site "Saint Louis"]
[Date "2024.04.19"]
[Round "9.5"]
[White "Aryan Chopra"]
[Black "Mishra, Abhimanyu"]
[Result "1/2-1/2"]
[ECO "A11"]
[WhiteElo "2630"]
[BlackElo "2626"]
[Annotator "TA"]
[PlyCount "166"]
[EventDate "2024.04.11"]
[EventCountry "USA"]
[SourceTitle "playchess.com"]
[Source "ChessBase"]
[SourceQuality "1"]
[TimeControl "7200+30"]

{[%evp 82,166,77,77,77,60,60,60,60,60,60,60,117,60,60,60,125,77,118,117,118,118,118,118,118,118,118,117,117,60,118,118,118,118,117,117,117,0,117,117,117,117,117,117,144,117,144,144,144,144,144,144,144,144,144,144,144,144,144,144,144,111,193,193,193,193,193,193,193,193,193,193,193,193,193,8,8,8,8,8,8,0,8,0,8,0,8]} 1. c4 {[%emt 0:01:43]} c6 {[%emt 0:00:11]} 2. Nf3 {[%emt 0:00:09]} d5 {[%emt 0:00:17]} 3. e3 {[%emt 0:00:07]} Nf6 {[%emt 0:00:14]} 4. Nc3 {[%emt 0:00:05]} Nbd7 {[%emt 0:00:48]} 5. Qc2 {[%emt 0:00:18]} e5 {[%emt 0:01:23]} 6. cxd5 {[%emt 0:00:20] A11: English Opening: 1...c6.} Nxd5 {[%emt 0:00:14]} 7. d4 {[%emt 0:00:19]} Nb4 {[%emt 0:03:45]} 8. Qb1 {[%emt 0:00:50]} exd4 {[%emt 0:00:25]} 9. Nxd4 {[%emt 0:00:06]} Nf6 {[%emt 0:00:23]} 10. Be2 {[%emt 0:00:40]} Bd6 $146 {[%emt 0:17:05]} ({Predecessor:} 10... c5 11. Nf3 Bd6 12. O-O O-O 13. b3 Qe7 14. Bb2 Bg4 15. Nb5 Bb8 16. Ng5 g6 17. Bxf6 Qxf6 18. Bxg4 Qxg5 {½-½ Demuth,A (2498)-Admiraal,M (2506) BEL-chT 1920 2019 (8.3)}) 11. a3 {[%emt 0:01:34]} Nbd5 {[%emt 0:00:28]} 12. Nxd5 {[%emt 0:01:08]} Nxd5 {[%emt 0:03:05]} 13. Nf5 {[%emt 0:00:24]} Bxf5 {[%emt 0:07:41]} 14. Qxf5 {[%emt 0:00:07]} O-O {[%emt 0:00:16]} 15. O-O {[%emt 0:01:16]} Qf6 {[%emt 0:01:52]} 16. Qxf6 {[%emt 0:25:31]} Nxf6 {[%emt 0:00:12]} 17. Rd1 {[%emt 0:00:07]} Be5 {[%emt 0:08:56]} 18. Rb1 {[%emt 0:01:05]} Rfd8 {[%emt 0:04:44]} 19. Bd2 {[%emt 0:06:45]} a5 {[%emt 0:06:02]} 20. Kf1 {[%emt 0:11:26]} Kf8 {[%emt 0:07:33]} 21. Be1 {[%emt 0:03:30]} Rxd1 {[%emt 0:05:28]} 22. Bxd1 {[%emt 0:00:13]} Nd5 {[%emt 0:00:40]} 23. a4 {[%emt 0:11:09]} Nb4 {[%emt 0:04:16]} 24. Ke2 {[%emt 0:01:42]} Rd8 {[%emt 0:07:04]} 25. Bb3 {[%emt 0:02:40]} h5 {[%emt 0:06:56]} 26. h4 {[%emt 0:08:43]} Bf6 {[%emt 0:05:12]} 27. g3 {[%emt 0:01:28]} b6 {[%emt 0:04:31]} 28. Bc4 {[%emt 0:03:13]} Ke7 {[%emt 0:05:29]} 29. f4 {[%emt 0:07:47]} g6 {[%emt 0:06:25]} 30. Bc3 {[%emt 0:04:27]} Nd5 {[%emt 0:01:22]} 31. Bd2 {[%emt 0:00:58]} Nb4 {[%emt 0:01:55]} 32. Rd1 {[%emt 0:03:33]} Ke8 {[%emt 0:03:16]} 33. b3 {[%emt 0:10:01]} Be7 {[%emt 0:03:58]} 34. Bxb4 {[%emt 0:04:32]} axb4 {[%emt 0:00:48]} 35. Rxd8+ {[%emt 0:00:19]} Bxd8 {[%emt 0:00:04]} 36. e4 {[%emt 0:00:07]} Be7 {[%emt 0:03:03]} 37. Kf3 {[%emt 0:00:48]} Bc5 {[%emt 0:01:43]} 38. e5 {[%emt 0:00:12]} Ke7 {[%emt 0:01:54]} 39. Bd3 {[%emt 0:01:57]} f5 {[%emt 0:03:49]} 40. exf6+ {[%emt 0:00:57]} Kxf6 {[%emt 0:00:05]} 41. Be4 {[%emt 0:00:06]} Bd4 {[%emt 0:01:04]} 42. Bxc6 {[%emt 0:00:12]} Bc3 {[%emt 0:00:46]} 43. g4 {[%emt 0:09:30]} hxg4+ {[%emt 0:00:09]} 44. Kxg4 {[%emt 0:00:06]} Bd2 {[%emt 0:01:08]} 45. Bg2 {[%emt 0:01:13]} Bc3 {[%emt 0:03:17]} 46. Bh3 {[%emt 0:00:20]} Ke7 {[%emt 0:01:15]} (46... Bd2 $14) 47. Bf1 {[%emt 0:03:39]} (47. f5 $1 $16 {[%cal Rf5g6]} Kf6 48. fxg6 Kxg6 49. Bg2) 47... Kf6 $14 {[%emt 0:00:24]} 48. Ba6 {[%emt 0:01:33]} Kf7 {[%emt 0:00:41]} (48... Bd2 $14) 49. Bc8 {[%emt 0:00:09]} (49. f5 $142 $1) 49... Bf6 {[%emt 0:00:32]} 50. Bd7 {[%emt 0:01:11]} Ke7 {[%emt 0:00:19]} 51. Bb5 {[%emt 0:00:04]} Kf7 {[%emt 0:00:15]} 52. Bc4+ {[%emt 0:00:07]} Kf8 {[%emt 0:00:24]} 53. Bd3 {[%emt 0:01:02]} Kf7 {[%emt 0:00:09]} 54. Kg3 {[%emt 0:01:23]} Bc3 {[%emt 0:00:27]} 55. Kf3 {[%emt 0:00:19]} ({White should try} 55. f5 $1 $16 {[%cal Rf5g6]} gxf5 56. Bxf5) 55... Bf6 {[%emt 0:00:17]} (55... Kf6 $14) 56. Kg4 $16 {[%emt 0:02:09]} Kg7 {[%emt 0:00:18]} 57. Be4 {[%emt 0:02:09]} Kf7 {[%emt 0:00:19]} 58. Bd5+ {[%emt 0:00:09]} Kf8 {[%emt 0:00:25]} 59. Be4 {[%emt 0:00:53]} Kf7 $1 {[%emt 0:00:19]} 60. f5 {[%emt 0:00:16]} gxf5+ {[%emt 0:00:11]} 61. Bxf5 {[%emt 0:00:09]} Kg7 {[%emt 0:00:24]} 62. h5 {[%emt 0:00:05]} Kh8 {[%emt 0:00:10]} 63. Kf4 {[%emt 0:00:04]} Bd4 {[%emt 0:00:04]} 64. Ke4 {[%emt 0:00:07]} Bg1 {[%emt 0:00:04]} 65. h6 {[%emt 0:00:05]} Bf2 {[%emt 0:00:05]} 66. Kd5 {[%emt 0:00:03]} Be3 {[%emt 0:00:06] [#]} 67. Kc6 $1 {[%emt 0:00:03]} Kg8 {[%emt 0:00:10]} 68. Kb5 {[%emt 0:00:04]} Kh8 {[%emt 0:00:05]} 69. h7 {[%emt 0:00:05]} ({Don't play} 69. Kxb4 $6 Bxh6 70. Bg4 Kg7 $11) 69... Bg1 {[%emt 0:00:11]} 70. Kxb4 {[%emt 0:00:04]} Bf2 {[%emt 0:00:05]} 71. Kb5 {[%emt 0:00:05]} Bg1 {[%emt 0:00:04] [#]} (71... Kg7 $16 {might work better.} 72. Bb1 Be3) 72. b4 $1 $18 {[%emt 0:00:04]} Bf2 {[%emt 0:00:04]} 73. a5 {[%emt 0:00:04]} bxa5 {[%emt 0:00:05]} 74. bxa5 {[%emt 0:00:04]} Bg1 {[%emt 0:00:06]} 75. a6 {[%emt 0:00:03]} Bf2 {[%emt 0:00:05]} 76. Kc6 {[%emt 0:00:04]} Bg1 {[%emt 0:00:18]} 77. Kb7 {[%emt 0:00:04]} Bf2 {[%emt 0:00:33]} 78. a7 $2 {[%emt 0:00:03]} (78. Bg6 $18 {Be4 would now be deadly.} Kg7 79. a7 Bxa7 80. Kxa7) 78... Bxa7 $1 $11 {[%emt 0:00:07]} 79. Kxa7 {[%emt 0:00:03]} Kg7 {[%emt 0:00:08]} 80. Ka8 {[%emt 0:00:02]} Kh8 {[%emt 0:00:06]} 81. Ka7 {[%emt 0:00:02]} Kg7 {[%emt 0:00:07]} 82. Ka8 {[%emt 0:00:02]} Kh8 {[%emt 0:00:05]} 83. Ka7 {[%emt 0:00:02]} Kg7 {[%emt 0:00:05]} 1/2-1/2